[Event "RUS-ch Girls U21 2021"]
[Site "Loo"]
[Date "2021.04.28"]
[Round "8.10"]
[White "Koroleva, Evgeniya"]
[Black "Emelyanova, Victoria"]
[Result "0-1"]
[ECO "D31"]
[WhiteElo "1884"]
[BlackElo "1765"]
[Annotator "NA RC"]
[PlyCount "176"]
[EventDate "2021.04.21"]
[EventType "swiss"]
[EventCountry "RUS"]
[SourceTitle "playchess.com"]
[Source "ChessBase"]
[SourceQuality "1"]
[TimeControl "40/5400+30:1800+30"]

1. d4 {[%emt 0:00:00]} d5 {[%emt 0:00:11]} 2. c4 {[%emt 0:00:00]} e6 {[%emt 0:00:03]} 3. Nc3 {[%emt 0:00:00]} a6 {[%emt 0:00:05]} 4. cxd5 {[%emt 0:00:00]} exd5 {[%emt 0:00:04]} 5. Nf3 {[%emt 0:01:23]} Nf6 {[%emt 0:00:47]} 6. Bg5 {[%emt 0:00:10]} Be7 {[%emt 0:01:30]} 7. e3 {[%emt 0:00:17]} Be6 {[%emt 0:01:02]} 8. Bd3 {[%emt 0:04:23]} Nbd7 {[%emt 0:02:06]} 9. Rc1 {[%emt 0:03:42]} h6 {[%emt 0:00:55]} 10. Bh4 {[%emt 0:00:21]} O-O {[%emt 0:02:31]} 11. O-O {[%emt 0:00:34]} c6 {[%emt 0:03:11]} 12. Re1 {[%emt 0:01:54]} Re8 {[%emt 0:01:53]} 13. a3 {[%emt 0:02:04]} Rc8 {[%emt 0:02:18]} 14. Qb3 {[%emt 0:01:03]} Qb6 {[%emt 0:02:57]} 15. Qc2 {[%emt 0:01:39]} Qa5 {[%emt 0:02:34]} 16. Qb1 {[%emt 0:01:04]} Bd6 {[%emt 0:07:38]} 17. Nd2 {[%emt 0:03:43]} Qc7 {[%emt 0:04:05]} 18. Bg3 {[%emt 0:00:25]} Bxg3 {[%emt 0:00:07]} 19. hxg3 {[%emt 0:00:05]} Qd6 {[%emt 0:02:45]} 20. Rcd1 {[%emt 0:04:35]} Bg4 {[%emt 0:04:13]} 21. f3 {[%emt 0:05:35]} Be6 {[%emt 0:05:44]} 22. Nf1 {[%emt 0:01:16]} Rcd8 {[%emt 0:04:37]} 23. Kf2 {[%emt 0:05:08]} c5 {[%emt 0:06:58]} 24. dxc5 {[%emt 0:00:33]} Nxc5 {[%emt 0:01:21]} 25. Bc2 {[%emt 0:00:16]} Qc7 {[%emt 0:07:54]} 26. Rd4 {[%emt 0:03:21]} Re7 {[%emt 0:05:35]} 27. Red1 {[%emt 0:00:56]} Rde8 {[%emt 0:00:59]} 28. Ne2 {[%emt 0:01:21]} Bd7 {[%emt 0:02:11]} 29. R4d2 {[%emt 0:07:05]} Bb5 {[%emt 0:03:07]} 30. b3 {[%emt 0:08:47]} Ne6 {[%emt 0:08:14]} 31. Bd3 {[%emt 0:07:06]} Bxd3 {[%emt 0:02:43]} 32. Rxd3 {[%emt 0:00:33]} Nc5 {[%emt 0:03:47]} 33. R3d2 {[%emt 0:01:19]} Qe5 {[%emt 0:02:49]} 34. Nf4 {[%emt 0:10:23]} Rd7 {[%emt 0:02:45]} 35. Qb2 {[%emt 0:03:03]} Qxb2 {[%emt 0:04:11]} 36. Rxb2 {[%emt 0:00:06]} g5 {[%emt 0:01:58]} 37. Ne2 {[%emt 0:01:05]} Rde7 {[%emt 0:01:27]} 38. Nd4 {[%emt 0:00:37]} Kh7 {[%emt 0:00:44]} 39. g4 {[%emt 0:05:14]} Kg6 {[%emt 0:00:46]} 40. Ne2 {[%emt 0:00:00]} b6 {[%emt 0:00:00]} 41. Nc3 {[%emt 0:09:38]} Re5 {[%emt 0:06:40]} 42. b4 {[%emt 0:01:44]} Ne6 {[%emt 0:01:44]} 43. Rbd2 {[%emt 0:01:53]} Nc7 {[%emt 0:02:52]} 44. Na4 {[%emt 0:03:28]} R5e6 {[%emt 0:02:13]} 45. Rc2 {[%emt 0:01:18]} Nb5 {[%emt 0:02:12]} 46. Rd3 {[%emt 0:00:30]} Rd8 {[%emt 0:03:15]} 47. Rcd2 {[%emt 0:01:18]} Red6 {[%emt 0:02:04]} 48. Ng3 {[%emt 0:01:40]} Re6 {[%emt 0:04:19]} 49. Ne2 {[%emt 0:03:15]} Rde8 {[%emt 0:01:10]} 50. Rd1 {[%emt 0:09:20]} Kg7 {[%emt 0:02:22]} 51. Ng3 {[%emt 0:03:54]} Kg6 {[%emt 0:01:21]} 52. Ne2 {[%emt 0:02:52]} Kg7 {[%emt 0:00:24]} 53. Nb2 {[%emt 0:01:19]} Rc8 {[%emt 0:06:27]} 54. a4 {[%emt 0:03:37]} Nd6 {[%emt 0:00:13]} 55. Nd4 {[%emt 0:01:04]} Re7 {[%emt 0:00:26]} 56. b5 {[%emt 0:05:59]} axb5 {[%emt 0:00:04]} 57. Rb3 {[%emt 0:00:01]} Kg6 {[%emt 0:01:08]} 58. axb5 {[%emt 0:01:47]} Rec7 {[%emt 0:00:45]} 59. Na4 {[%emt 0:01:36]} Nd7 {[%emt 0:00:24]} 60. Ne2 {[%emt 0:01:41]} Nc5 {[%emt 0:00:28]} 61. Rxd5 {[%emt 0:00:43]} Nxb3 {[%emt 0:00:19]} 62. Rxd6+ {[%emt 0:00:01]} Kg7 {[%emt 0:00:34]} 63. Nxb6 {[%emt 0:00:03]} Rb8 {[%emt 0:00:26]} 64. Ng3 {[%emt 0:00:45]} f6 {[%emt 0:00:45]} 65. Nh5+ {[%emt 0:00:44]} Kh8 {[%emt 0:00:30]} 66. Nxf6 {[%emt 0:00:53]} Rcb7 {[%emt 0:00:28]} 67. Nfd5 {[%emt 0:00:39]} Kg7 {[%emt 0:00:20]} 68. g3 {[%emt 0:00:14]} Nc5 {[%emt 0:00:23]} 69. Rc6 {[%emt 0:00:20]} Nd3+ {[%emt 0:00:18]} 70. Ke2 {[%emt 0:00:01]} Ne5 {[%emt 0:00:15]} 71. Rd6 {[%emt 0:00:30]} Ra7 {[%emt 0:00:26]} 72. Kd2 {[%emt 0:01:27]} Nxf3+ {[%emt 0:00:10]} 73. Kc3 {[%emt 0:00:00]} Ne5 {[%emt 0:00:30]} 74. Kd4 {[%emt 0:00:23]} Nxg4 {[%emt 0:00:42]} 75. Kc5 {[%emt 0:00:18]} Ra1 {[%emt 0:00:42]} 76. Rd7+ {[%emt 0:00:37]} Kg6 {[%emt 0:00:22]} 77. Ne7+ {[%emt 0:00:16]} Kf6 {[%emt 0:01:00]} 78. Nbd5+ {[%emt 0:01:13]} Ke6 {[%emt 0:00:08]} 79. Rd6+ {[%emt 0:00:06]} Kf7 {[%emt 0:00:08]} 80. Nc6 {[%emt 0:01:13]} Rc1+ {[%emt 0:00:28]} 81. Kd4 {[%emt 0:00:22]} Rxb5 {[%emt 0:00:36]} 82. Ne5+ {[%emt 0:00:34]} Nxe5 {[%emt 0:00:19]} 83. Kxe5 {[%emt 0:00:01]} Rd1 {[%emt 0:01:29]} 84. e4 {[%emt 0:00:07]} h5 {[%emt 0:00:24]} 85. Kf5 {[%emt 0:00:35]} h4 {[%emt 0:00:42]} 86. Rf6+ {[%emt 0:00:43]} Kg7 {[%emt 0:00:20]} 87. Ke6 {[%emt 0:01:01]} Rbxd5 {[%emt 0:00:41]} 88. Rf7+ {[%emt 0:00:35]} Kg8 {[%emt 0:00:21]} 0-1

[Event "RUS-ch Girls U21 2021"]
[Site "Loo"]
[Date "2021.04.29"]
[Round "9.1"]
[White "Afonasieva, Anna"]
[Black "Shafigullina, Zarina"]
[Result "1-0"]
[ECO "B20"]
[WhiteElo "2270"]
[BlackElo "2293"]
[Annotator "NA"]
[PlyCount "109"]
[EventDate "2021.04.21"]
[EventType "swiss"]
[EventCountry "RUS"]
[SourceTitle "playchess.com"]
[Source "ChessBase"]
[SourceQuality "1"]
[TimeControl "40/5400+30:1800+30"]

1. e4 {[%emt 0:00:00]} c5 {[%emt 0:00:00]} 2. b4 {[%emt 0:00:00]} cxb4 {[%emt 0:00:07]} 3. a3 {[%emt 0:00:00]} bxa3 {[%emt 0:02:36]} 4. Nxa3 {[%emt 0:00:00]} Nc6 {[%emt 0:01:47]} 5. Nf3 {[%emt 0:01:09]} Nf6 {[%emt 0:02:03]} 6. e5 {[%emt 0:03:22]} Nd5 {[%emt 0:03:26]} 7. c4 {[%emt 0:03:11]} Nc7 {[%emt 0:00:52]} 8. d4 {[%emt 0:01:24]} d5 {[%emt 0:03:36]} 9. exd6 {[%emt 0:09:45]} Qxd6 {[%emt 0:00:10]} 10. c5 {[%emt 0:03:16]} Qd8 {[%emt 0:08:39]} 11. Bb5 {[%emt 0:11:54]} e6 {[%emt 0:10:19]} 12. O-O {[%emt 0:05:05]} Bd7 {[%emt 0:08:06]} 13. Bf4 {[%emt 0:05:04]} Be7 {[%emt 0:03:26]} 14. Bd3 {[%emt 0:02:53]} O-O {[%emt 0:06:40]} 15. Qb1 {[%emt 0:04:54]} h6 {[%emt 0:12:42]} 16. Qxb7 {[%emt 0:04:44]} Nd5 {[%emt 0:00:12]} 17. Bg3 {[%emt 0:00:29]} Ndb4 {[%emt 0:11:30]} 18. Be4 {[%emt 0:02:52]} a5 {[%emt 0:00:17]} 19. Ne5 {[%emt 0:08:07]} Ra7 {[%emt 0:04:36]} 20. Nxc6 {[%emt 0:01:40]} Nxc6 {[%emt 0:00:05]} 21. Qb6 {[%emt 0:00:43]} Qa8 {[%emt 0:01:27]} 22. Nc4 {[%emt 0:02:46]} f5 {[%emt 0:02:48]} 23. Bxc6 {[%emt 0:20:29]} Bxc6 {[%emt 0:00:03]} 24. Be5 {[%emt 0:02:53]} Bxg2 {[%emt 0:04:37]} 25. Qxe6+ {[%emt 0:01:28]} Kh7 {[%emt 0:00:08]} 26. f3 {[%emt 0:02:46]} Bxf1 {[%emt 0:00:37]} 27. Rxf1 {[%emt 0:00:03]} Qe8 {[%emt 0:01:21]} 28. Kh1 {[%emt 0:00:30]} Qf7 {[%emt 0:07:02]} 29. Qxf7 {[%emt 0:00:23]} Rxf7 {[%emt 0:00:02]} 30. c6 {[%emt 0:00:24]} Bf6 {[%emt 0:04:08]} 31. d5 {[%emt 0:00:34]} Bxe5 {[%emt 0:00:39]} 32. Nxe5 {[%emt 0:00:03]} Rfe7 {[%emt 0:00:10]} 33. f4 {[%emt 0:00:41]} a4 {[%emt 0:01:24]} 34. d6 {[%emt 0:00:17]} Re8 {[%emt 0:00:09]} 35. d7 {[%emt 0:01:20]} Rf8 {[%emt 0:00:21]} 36. Rc1 {[%emt 0:01:23]} Rc7 {[%emt 0:00:59]} 37. Ra1 {[%emt 0:00:43]} g5 {[%emt 0:00:42]} 38. Rxa4 {[%emt 0:00:14]} gxf4 {[%emt 0:00:05]} 39. Rd4 {[%emt 0:00:28]} Kg7 {[%emt 0:00:35]} 40. d8=Q {[%emt 0:00:00]} Rxd8 {[%emt 0:00:00]} 41. Rxd8 {[%emt 0:00:50]} Kf6 {[%emt 0:00:11]} 42. Nf3 {[%emt 0:03:41]} Rxc6 {[%emt 0:00:13]} 43. Rf8+ {[%emt 0:00:07]} Kg7 {[%emt 0:01:09]} 44. Rf7+ {[%emt 0:00:24]} Kg8 {[%emt 0:01:30]} 45. Rxf5 {[%emt 0:00:04]} Rc4 {[%emt 0:00:07]} 46. Kg2 {[%emt 0:00:06]} Ra4 {[%emt 0:00:43]} 47. Kh3 {[%emt 0:00:09]} Kg7 {[%emt 0:00:26]} 48. Kg4 {[%emt 0:00:14]} Ra2 {[%emt 0:01:33]} 49. Rxf4 {[%emt 0:00:33]} Ra5 {[%emt 0:00:13]} 50. Rb4 {[%emt 0:00:32]} Ra6 {[%emt 0:00:27]} 51. Rb7+ {[%emt 0:00:27]} Kf6 {[%emt 0:00:09]} 52. Kh5 {[%emt 0:01:41]} Kf5 {[%emt 0:00:17]} 53. Nh4+ {[%emt 0:01:05]} Kf4 {[%emt 0:00:15]} 54. Ng6+ {[%emt 0:00:15]} Kf3 {[%emt 0:00:08]} 55. h4 {[%emt 0:00:16]} 1-0

[Event "RUS-ch Girls U21 2021"]
[Site "Loo"]
[Date "2021.04.29"]
[Round "9.2"]
[White "Nasyrova, Ekaterina"]
[Black "Goltseva, Ekaterina"]
[Result "1-0"]
[ECO "E46"]
[WhiteElo "2273"]
[BlackElo "2269"]
[Annotator "NA"]
[PlyCount "111"]
[EventDate "2021.04.21"]
[EventType "swiss"]
[EventCountry "RUS"]
[SourceTitle "playchess.com"]
[Source "ChessBase"]
[SourceQuality "1"]
[TimeControl "40/5400+30:1800+30"]

1. c4 {[%emt 0:00:00]} Nf6 {[%emt 0:02:28]} 2. d4 {[%emt 0:00:00]} e6 {[%emt 0:00:08]} 3. Nc3 {[%emt 0:00:05]} Bb4 {[%emt 0:00:05]} 4. e3 {[%emt 0:00:12]} O-O {[%emt 0:00:19]} 5. Bd2 {[%emt 0:00:12]} b6 {[%emt 0:00:48]} 6. Nf3 {[%emt 0:00:35]} c5 {[%emt 0:01:01]} 7. a3 {[%emt 0:01:46]} Bxc3 {[%emt 0:00:11]} 8. Bxc3 {[%emt 0:00:14]} Ne4 {[%emt 0:00:35]} 9. Qc2 {[%emt 0:01:53]} Nxc3 {[%emt 0:05:31]} 10. Qxc3 {[%emt 0:00:35]} Bb7 {[%emt 0:03:48]} 11. Be2 {[%emt 0:01:20]} Qe7 {[%emt 0:05:54]} 12. O-O {[%emt 0:00:50]} cxd4 {[%emt 0:10:57]} 13. exd4 {[%emt 0:18:01]} d6 {[%emt 0:02:12]} 14. b4 {[%emt 0:02:27]} Nd7 {[%emt 0:03:02]} 15. Rfe1 {[%emt 0:01:31]} Qf6 {[%emt 0:04:23]} 16. Rac1 {[%emt 0:02:24]} Rac8 {[%emt 0:02:10]} 17. Qe3 {[%emt 0:04:21]} Rfe8 {[%emt 0:11:04]} 18. Nd2 {[%emt 0:02:30]} Qg6 {[%emt 0:10:27]} 19. f3 {[%emt 0:03:35]} e5 {[%emt 0:05:09]} 20. d5 {[%emt 0:01:17]} f5 {[%emt 0:05:31]} 21. Nb3 {[%emt 0:10:39]} Nf6 {[%emt 0:02:40]} 22. a4 {[%emt 0:02:29]} Qf7 {[%emt 0:04:54]} 23. Qd2 {[%emt 0:07:04]} Rc7 {[%emt 0:05:12]} 24. Bd3 {[%emt 0:09:15]} Qh5 {[%emt 0:04:22]} 25. a5 {[%emt 0:10:23]} b5 {[%emt 0:02:44]} 26. a6 {[%emt 0:01:12]} Bxa6 {[%emt 0:01:19]} 27. c5 {[%emt 0:06:07]} e4 {[%emt 0:01:04]} 28. Be2 {[%emt 0:06:03]} Qf7 {[%emt 0:00:32]} 29. Qa2 {[%emt 0:00:16]} exf3 {[%emt 0:02:10]} 30. Bxf3 {[%emt 0:01:43]} Bc8 {[%emt 0:00:22]} 31. Nd4 {[%emt 0:05:50]} a6 {[%emt 0:03:49]} 32. cxd6 {[%emt 0:00:21]} Rxc1 {[%emt 0:00:16]} 33. Rxc1 {[%emt 0:00:01]} Qd7 {[%emt 0:00:48]} 34. Rc6 {[%emt 0:00:36]} Ne4 {[%emt 0:00:31]} 35. Bxe4 {[%emt 0:01:04]} fxe4 {[%emt 0:00:04]} 36. Ne6 {[%emt 0:00:22]} Qa7+ {[%emt 0:00:43]} 37. Qf2 {[%emt 0:00:36]} e3 {[%emt 0:00:26]} 38. Qe2 {[%emt 0:00:15]} Bxe6 {[%emt 0:00:43]} 39. dxe6 {[%emt 0:00:07]} Qd4 {[%emt 0:00:35]} 40. e7 {[%emt 0:00:00]} Qd5 {[%emt 0:00:00]} 41. Qxe3 {[%emt 0:17:14]} Qxc6 {[%emt 0:06:45]} 42. Qe6+ {[%emt 0:00:09]} Kh8 {[%emt 0:00:04]} 43. d7 {[%emt 0:00:17]} Qc1+ {[%emt 0:00:43]} 44. Kf2 {[%emt 0:00:08]} Qd2+ {[%emt 0:14:53]} 45. Kf3 {[%emt 0:00:59]} Qd3+ {[%emt 0:02:51]} 46. Kg4 {[%emt 0:02:10]} h5+ {[%emt 0:02:27]} 47. Kh4 {[%emt 0:05:02]} Qd4+ {[%emt 0:02:33]} 48. Kxh5 {[%emt 0:01:40]} g6+ {[%emt 0:00:37]} 49. Kxg6 {[%emt 0:01:24]} Rxe7 {[%emt 0:02:36]} 50. Qxe7 {[%emt 0:00:16]} Qg4+ {[%emt 0:00:06]} 51. Kf7 {[%emt 0:00:49]} Qh5+ {[%emt 0:00:24]} 52. Ke6 {[%emt 0:01:14]} Qg4+ {[%emt 0:00:19]} 53. Ke5 {[%emt 0:00:15]} Qh5+ {[%emt 0:00:55]} 54. Kd6 {[%emt 0:00:27]} Qd1+ {[%emt 0:00:26]} 55. Kc7 {[%emt 0:00:34]} Qc2+ {[%emt 0:00:19]} 56. Kb8 {[%emt 0:00:11]} 1-0

[Event "RUS-ch Girls U21 2021"]
[Site "Loo"]
[Date "2021.04.29"]
[Round "9.3"]
[White "Nosacheva, Mariya"]
[Black "Zotova, Anastasia"]
[Result "1-0"]
[ECO "B96"]
[WhiteElo "2199"]
[BlackElo "2160"]
[Annotator "NA"]
[PlyCount "81"]
[EventDate "2021.04.21"]
[EventType "swiss"]
[EventCountry "RUS"]
[SourceTitle "playchess.com"]
[Source "ChessBase"]
[SourceQuality "1"]
[TimeControl "40/5400+30:1800+30"]

1. e4 {[%emt 0:00:00]} c5 {[%emt 0:00:00]} 2. Nf3 {[%emt 0:00:00]} d6 {[%emt 0:00:00]} 3. d4 {[%emt 0:00:05]} cxd4 {[%emt 0:00:00]} 4. Nxd4 {[%emt 0:00:04]} Nf6 {[%emt 0:00:04]} 5. Nc3 {[%emt 0:00:04]} a6 {[%emt 0:00:06]} 6. Bg5 {[%emt 0:00:14]} e6 {[%emt 0:00:31]} 7. f4 {[%emt 0:00:17]} Nbd7 {[%emt 0:00:28]} 8. Qf3 {[%emt 0:00:37]} Qc7 {[%emt 0:01:02]} 9. O-O-O {[%emt 0:00:20]} b5 {[%emt 0:00:57]} 10. e5 {[%emt 0:01:26]} Bb7 {[%emt 0:00:32]} 11. Qh3 {[%emt 0:00:23]} dxe5 {[%emt 0:07:04]} 12. Nxe6 {[%emt 0:01:08]} fxe6 {[%emt 0:03:35]} 13. Qxe6+ {[%emt 0:00:19]} Be7 {[%emt 0:00:26]} 14. Bxb5 {[%emt 0:00:22]} axb5 {[%emt 0:04:52]} 15. Nxb5 {[%emt 0:00:18]} Qc6 {[%emt 0:01:50]} 16. Nd6+ {[%emt 0:00:19]} Kd8 {[%emt 0:01:02]} 17. fxe5 {[%emt 0:00:17]} Rc8 {[%emt 0:05:36]} 18. Nxb7+ {[%emt 0:23:40]} Kc7 {[%emt 0:04:59]} 19. Qxc6+ {[%emt 0:25:55]} Kxc6 {[%emt 0:00:19]} 20. Na5+ {[%emt 0:00:20]} Kb6 {[%emt 0:02:02]} 21. exf6 {[%emt 0:00:25]} Bxf6 {[%emt 0:00:47]} 22. Bxf6 {[%emt 0:00:19]} Nxf6 {[%emt 0:00:16]} 23. Nb3 {[%emt 0:01:03]} Ng4 {[%emt 0:00:40]} 24. Rd7 {[%emt 0:02:44]} Rhf8 {[%emt 0:01:56]} 25. Rhd1 {[%emt 0:02:16]} Ne3 {[%emt 0:00:43]} 26. R1d6+ {[%emt 0:00:40]} Rc6 {[%emt 0:01:06]} 27. Rxc6+ {[%emt 0:01:15]} Kxc6 {[%emt 0:00:05]} 28. Rxg7 {[%emt 0:00:21]} Rf2 {[%emt 0:00:31]} 29. Rg3 {[%emt 0:02:43]} Nc4 {[%emt 0:00:48]} 30. Rd3 {[%emt 0:03:08]} Rxg2 {[%emt 0:00:33]} 31. Nd4+ {[%emt 0:00:41]} Kc5 {[%emt 0:00:20]} 32. Ne6+ {[%emt 0:04:19]} Kc6 {[%emt 0:00:20]} 33. b3 {[%emt 0:00:32]} Ne5 {[%emt 0:00:45]} 34. Rh3 {[%emt 0:05:42]} Ng4 {[%emt 0:00:35]} 35. Rg3 {[%emt 0:00:17]} Rxg3 {[%emt 0:00:31]} 36. hxg3 {[%emt 0:00:07]} Kd5 {[%emt 0:00:15]} 37. Nf4+ {[%emt 0:00:20]} Ke4 {[%emt 0:00:16]} 38. a4 {[%emt 0:04:19]} Ne5 {[%emt 0:00:26]} 39. Kd2 {[%emt 0:02:15]} Kf3 {[%emt 0:00:14]} 40. Ne2 {[%emt 0:00:00]} h5 {[%emt 0:00:00]} 41. a5 {[%emt 0:02:03]} 1-0

[Event "RUS-ch Girls U21 2021"]
[Site "Loo"]
[Date "2021.04.29"]
[Round "9.4"]
[White "Grigorieva, Yulia"]
[Black "Sakorenko, Adriana"]
[Result "0-1"]
[ECO "B12"]
[WhiteElo "2236"]
[BlackElo "2216"]
[Annotator "NA"]
[PlyCount "68"]
[EventDate "2021.04.21"]
[EventType "swiss"]
[EventCountry "RUS"]
[SourceTitle "playchess.com"]
[Source "ChessBase"]
[SourceQuality "1"]
[TimeControl "40/5400+30:1800+30"]

1. e4 {[%emt 0:00:00]} c6 {[%emt 0:00:00]} 2. d4 {[%emt 0:00:00]} d5 {[%emt 0:00:00]} 3. e5 {[%emt 0:00:00]} c5 {[%emt 0:00:00]} 4. dxc5 {[%emt 0:00:00]} e6 {[%emt 0:00:00]} 5. Qg4 {[%emt 0:00:00]} Nd7 {[%emt 0:01:36]} 6. Nf3 {[%emt 0:01:57]} Nxc5 {[%emt 0:03:45]} 7. Nc3 {[%emt 0:10:22]} a6 {[%emt 0:04:00]} 8. Be2 {[%emt 0:07:23]} Qc7 {[%emt 0:03:02]} 9. O-O {[%emt 0:04:19]} Ne7 {[%emt 0:00:50]} 10. Re1 {[%emt 0:08:48]} Nf5 {[%emt 0:08:19]} 11. b4 {[%emt 0:07:05]} Nb3 {[%emt 0:23:12]} 12. cxb3 {[%emt 0:24:17]} Qxc3 {[%emt 0:00:24]} 13. Bd2 {[%emt 0:00:17]} Qc7 {[%emt 0:01:03]} 14. Bd3 {[%emt 0:04:27]} Qb6 {[%emt 0:07:19]} 15. Qf4 {[%emt 0:02:34]} h6 {[%emt 0:05:50]} 16. Bxf5 {[%emt 0:02:00]} exf5 {[%emt 0:00:08]} 17. Nd4 {[%emt 0:04:50]} g5 {[%emt 0:07:45]} 18. Qe3 {[%emt 0:00:13]} f4 {[%emt 0:00:13]} 19. Qd3 {[%emt 0:01:49]} Be6 {[%emt 0:01:43]} 20. a4 {[%emt 0:01:37]} Bg7 {[%emt 0:03:53]} 21. h4 {[%emt 0:06:32]} O-O {[%emt 0:07:47]} 22. hxg5 {[%emt 0:03:01]} hxg5 {[%emt 0:00:02]} 23. g3 {[%emt 0:06:22]} fxg3 {[%emt 0:01:20]} 24. Kg2 {[%emt 0:00:40]} gxf2 {[%emt 0:04:51]} 25. Rh1 {[%emt 0:00:01]} Rfe8 {[%emt 0:02:52]} 26. b5 {[%emt 0:02:57]} Bxe5 {[%emt 0:05:36]} 27. Qh7+ {[%emt 0:00:46]} Kf8 {[%emt 0:00:03]} 28. Bb4+ {[%emt 0:00:13]} Re7 {[%emt 0:02:57]} 29. Qh6+ {[%emt 0:01:11]} Ke8 {[%emt 0:00:56]} 30. Bxe7 {[%emt 0:00:35]} Qxd4 {[%emt 0:01:17]} 31. Bxg5 {[%emt 0:00:39]} Qg4+ {[%emt 0:02:09]} 32. Kxf2 {[%emt 0:00:34]} Qg3+ {[%emt 0:01:00]} 33. Ke2 {[%emt 0:00:24]} Bg4+ {[%emt 0:00:48]} 34. Kf1 {[%emt 0:00:28]} Qf3+ {[%emt 0:00:15]} 0-1

[Event "RUS-ch Girls U21 2021"]
[Site "Loo"]
[Date "2021.04.29"]
[Round "9.5"]
[White "Kochukova, Anna"]
[Black "Serditykh, Olesya"]
[Result "1/2-1/2"]
[ECO "C07"]
[WhiteElo "2108"]
[BlackElo "1961"]
[Annotator "NA"]
[PlyCount "124"]
[EventDate "2021.04.21"]
[EventType "swiss"]
[EventCountry "RUS"]
[SourceTitle "playchess.com"]
[Source "ChessBase"]
[SourceQuality "1"]
[TimeControl "40/5400+30:1800+30"]

1. e4 {[%emt 0:00:00]} e6 {[%emt 0:00:00]} 2. d4 {[%emt 0:00:00]} d5 {[%emt 0:00:00]} 3. Nd2 {[%emt 0:00:00]} c5 {[%emt 0:00:00]} 4. Ngf3 {[%emt 0:00:03]} cxd4 {[%emt 0:00:33]} 5. Nxd4 {[%emt 0:00:12]} Nc6 {[%emt 0:00:10]} 6. Bb5 {[%emt 0:00:47]} Bd7 {[%emt 0:00:11]} 7. Nxc6 {[%emt 0:00:07]} Bxc6 {[%emt 0:00:31]} 8. Bxc6+ {[%emt 0:00:02]} bxc6 {[%emt 0:00:03]} 9. O-O {[%emt 0:01:21]} Bd6 {[%emt 0:01:47]} 10. exd5 {[%emt 0:02:48]} cxd5 {[%emt 0:00:40]} 11. Nf3 {[%emt 0:01:51]} Nf6 {[%emt 0:00:49]} 12. Bg5 {[%emt 0:01:13]} O-O {[%emt 0:01:16]} 13. Qd4 {[%emt 0:01:35]} Be7 {[%emt 0:02:48]} 14. Ne5 {[%emt 0:01:20]} Qc7 {[%emt 0:00:22]} 15. Rfe1 {[%emt 0:08:01]} Bc5 {[%emt 0:01:38]} 16. Qh4 {[%emt 0:03:12]} Ne4 {[%emt 0:01:42]} 17. Nd3 {[%emt 0:00:29]} Nxg5 {[%emt 0:01:25]} 18. Qxg5 {[%emt 0:00:02]} Be7 {[%emt 0:00:14]} 19. Qd2 {[%emt 0:00:49]} Bf6 {[%emt 0:01:19]} 20. Rac1 {[%emt 0:01:13]} Rfc8 {[%emt 0:01:03]} 21. c3 {[%emt 0:01:01]} Rab8 {[%emt 0:02:21]} 22. Qe2 {[%emt 0:03:19]} Qc4 {[%emt 0:02:08]} 23. b3 {[%emt 0:04:02]} Qa6 {[%emt 0:01:07]} 24. Ne5 {[%emt 0:01:07]} Qxe2 {[%emt 0:05:32]} 25. Rxe2 {[%emt 0:00:02]} Rb7 {[%emt 0:00:16]} 26. f4 {[%emt 0:01:52]} Rbc7 {[%emt 0:00:14]} 27. Rec2 {[%emt 0:10:51]} Be7 {[%emt 0:05:25]} 28. c4 {[%emt 0:08:08]} Bc5+ {[%emt 0:03:04]} 29. Kf1 {[%emt 0:00:01]} Be3 {[%emt 0:00:34]} 30. Rd1 {[%emt 0:00:16]} Bxf4 {[%emt 0:00:53]} 31. Nd3 {[%emt 0:00:09]} Bd6 {[%emt 0:02:57]} 32. Rcd2 {[%emt 0:00:53]} dxc4 {[%emt 0:07:36]} 33. Ne5 {[%emt 0:02:05]} Be7 {[%emt 0:00:16]} 34. Nxc4 {[%emt 0:00:51]} g6 {[%emt 0:00:29]} 35. Ke2 {[%emt 0:01:43]} f6 {[%emt 0:03:41]} 36. Rd7 {[%emt 0:00:33]} Kf8 {[%emt 0:00:29]} 37. Kf3 {[%emt 0:00:28]} Ke8 {[%emt 0:02:05]} 38. R7d4 {[%emt 0:00:16]} Rd8 {[%emt 0:02:48]} 39. Rxd8+ {[%emt 0:02:14]} Bxd8 {[%emt 0:00:10]} 40. Rd6 {[%emt 0:00:00]} Ke7 {[%emt 0:00:00]} 41. Ra6 {[%emt 0:02:00]} Rd7 {[%emt 0:01:16]} 42. Ke2 {[%emt 0:01:29]} Rb7 {[%emt 0:03:05]} 43. Nd6 {[%emt 0:00:53]} Rb8 {[%emt 0:02:37]} 44. Nc4 {[%emt 0:03:18]} Bb6 {[%emt 0:03:59]} 45. Nxb6 {[%emt 0:03:08]} axb6 {[%emt 0:00:11]} 46. Ra7+ {[%emt 0:00:04]} Kd6 {[%emt 0:00:07]} 47. Rxh7 {[%emt 0:00:07]} b5 {[%emt 0:00:16]} 48. Ra7 {[%emt 0:04:34]} Kd5 {[%emt 0:00:12]} 49. Kd3 {[%emt 0:04:38]} g5 {[%emt 0:03:34]} 50. h3 {[%emt 0:07:25]} Ke5 {[%emt 0:02:19]} 51. Ke3 {[%emt 0:02:57]} Kf5 {[%emt 0:05:09]} 52. Ra5 {[%emt 0:02:58]} e5 {[%emt 0:00:22]} 53. g4+ {[%emt 0:01:28]} Ke6 {[%emt 0:01:14]} 54. Ke4 {[%emt 0:00:13]} Rb6 {[%emt 0:00:19]} 55. b4 {[%emt 0:01:11]} Kd6 {[%emt 0:00:32]} 56. a3 {[%emt 0:06:21]} Ke6 {[%emt 0:00:28]} 57. Ra8 {[%emt 0:03:32]} Kd6 {[%emt 0:00:40]} 58. Rd8+ {[%emt 0:05:22]} Ke6 {[%emt 0:00:10]} 59. Rd5 {[%emt 0:02:20]} Rb7 {[%emt 0:01:02]} 60. Rc5 {[%emt 0:02:38]} Rb6 {[%emt 0:00:11]} 61. Rc8 {[%emt 0:03:58]} Kd7 {[%emt 0:05:21]} 62. Rc5 {[%emt 0:01:53]} Ke6 {[%emt 0:00:07]} 1/2-1/2